bitfinex-derivatives/quotes_ETHF0:USTF0_20260226
["timestamp","ask_amount","ask_price","bid_price","bid_amount"]
[1772098167692,4.37484694,2065.4,2064.7,7.60258764]
[1772098167894,6.84731578,2065.3,2064.7,7.60258764]
[1772098168094,6.84731578,2065.2,2064.7,7.60258764]
[1772098168296,6.84731578,2065.1,2064.7,7.60258764]
[1772098168495,4.37484694,2065.4,2064.7,7.60258764]
[1772098168697,6.84734055,2065.3,2064.7,7.60258764]
[1772098168898,6.84734055,2065.2,2064.7,7.60258764]
[1772098169197,4.37484694,2065.4,2064.7,7.60258764]
[1772098169393,4.06611472,2065.6,2064.7,7.84473764]
[1772098169590,0.00617457,2065.6,2064.7,7.84473764]
[1772098169793,0.00617457,2065.6,2064.9,7.62816005]
[1772098173397,0.00617457,2065.6,2064.9,8.80989633]
[1772098174595,0.00617457,2065.6,2064.9,7.62816005]
[1772098177603,0.8170755,2065.6,2064.9,7.62816005]
[1772098178402,0.00617457,2065.6,2064.9,7.62816005]
[1772098180905,0.00617457,2065.6,2064.9,8.80989633]
[1772098183605,0.00617457,2065.6,2064.9,7.62816005]
[1772098186913,0.00617457,2065.6,2064.9,8.80989633]
[1772098188511,0.00617457,2065.6,2064.9,7.62816005]
[1772098192513,4.05994015,2066.0,2065.1,8.91943833]
[1772098192713,0.3444922,2066.2,2065.5,7.73770205]
[1772098193017,0.31422884,2066.0,2065.6,10.22228871]
[1772098193319,0.31422884,2066.0,2065.4,18.18970205]
[1772098193616,0.31422884,2065.8,2065.5,7.73770205]
[1772098194713,0.00451318,2066.0,2065.5,7.73770205]
[1772098194919,7.15181426,2065.9,2065.5,7.73770205]
[1772098195120,0.00451318,2066.0,2065.5,7.73770205]
[1772098195320,7.15311707,2065.9,2065.5,7.73770205]
[1772098195523,0.00451318,2066.0,2065.5,7.73770205]
[1772098195720,7.15282558,2065.9,2065.5,7.73770205]
[1772098195920,0.00451318,2066.0,2065.5,7.73770205]
[1772098196118,7.37123967,2065.9,2065.5,7.73770205]
[1772098196318,7.37123967,2065.8,2065.5,7.73770205]
[1772098196521,0.00451318,2066.0,2065.5,7.73770205]
[1772098196821,7.37233247,2065.9,2065.5,7.73770205]
[1772098197022,0.00451318,2066.0,2065.5,7.73770205]
[1772098199915,0.00451318,2066.0,2065.3,7.2870575]
[1772098199916,7.3576772,2066.0,2065.3,7.2870575]
[1772098200124,7.35316402,2065.9,2065.3,7.2870575]
[1772098200325,7.35316402,2065.8,2065.2,17.7420575]
[1772098200522,7.35316402,2065.7,2065.1,7.2154081]
[1772098200719,7.35316402,2065.6,2065.1,7.2154081]
[1772098201224,7.35316402,2065.6,2065.0,7.2870575]
[1772098201419,7.35316402,2065.4,2064.9,7.2870575]
[1772098201623,7.35316402,2065.3,2064.5,7.29097522]
[1772098201825,7.35316402,2065.2,2064.5,7.29097522]
[1772098202824,7.35316402,2065.3,2064.5,7.29097522]
[1772098206526,7.35316402,2065.4,2064.5,7.29097522]
[1772098208731,7.17178007,2065.3,2064.5,7.29097522]
[1772098209025,7.10687911,2065.1,2064.5,7.29097522]
[1772098215331,10.86336778,2065.3,2064.5,7.29097522]
[1772098215531,14.16794863,2065.2,2064.5,7.29097522]
[1772098215730,7.364521,2065.1,2064.5,7.29097522]
[1772098215927,6.80342763,2065.2,2064.5,7.29097522]
[1772098216128,14.10812237,2065.1,2064.5,7.29097522]
[1772098216328,6.74365204,2065.1,2064.5,7.29097522]
[1772098221233,6.74365204,2065.1,2064.7,7.2870575]
[1772098222129,7.627244,2065.0,2064.7,7.2870575]
[1772098222429,6.47051848,2065.0,2064.7,7.2870575]
[1772098223031,6.47051848,2065.0,2064.6,7.2870575]
[1772098225131,7.62746818,2064.9,2064.6,7.2870575]
[1772098225334,6.47051848,2065.0,2064.6,7.2870575]
[1772098225633,13.95633307,2064.9,2064.6,7.2870575]
[1772098225930,6.32858914,2064.9,2064.6,7.2870575]
[1772098226130,7.62774824,2064.8,2064.6,7.2870575]
[1772098226333,6.32858914,2064.9,2064.4,7.00923013]
[1772098226529,13.94473424,2064.8,2064.4,7.00923013]
[1772098226731,6.31698267,2064.8,2064.4,7.00923013]
[1772098226930,7.62800028,2064.7,2064.4,7.00923013]
[1772098227126,6.31698267,2064.8,2064.4,7.00923013]
[1772098227431,6.2452122,2064.6,2064.2,7.00923013]
[1772098228133,13.81906569,2064.5,2064.2,7.00923013]
[1772098228328,6.19054437,2064.5,2064.2,7.00923013]
[1772098228528,0.00616434,2064.5,2064.2,7.01279268]
[1772098230835,7.62852634,2064.4,2064.2,7.01279268]
[1772098231030,4.04489869,2064.7,2064.4,7.00923013]
[1772098231237,7.6285168,2064.6,2064.4,7.00923013]
[1772098231537,4.04489869,2064.8,2064.4,7.00923013]
[1772098231738,4.04489869,2064.9,2064.6,7.00923013]
[1772098231929,4.04489869,2065.0,2064.6,7.00923013]
[1772098232129,4.04847602,2065.0,2064.6,7.00923013]
[1772098232335,6.02907182,2065.0,2064.6,7.00923013]
[1772098233340,0.00357733,2065.0,2064.6,7.00923013]
[1772098237944,4.04489869,2065.3,2064.8,6.58316768]
[1772098238247,10.17414539,2065.3,2064.8,6.58316768]
[1772098238742,6.12677328,2065.2,2064.8,6.58316768]
[1772098239043,6.07416188,2064.9,2064.4,6.58316768]
[1772098239943,6.07416188,2064.9,2064.3,6.58316768]
[1772098243351,7.25596831,2064.9,2064.3,6.58316768]
[1772098243546,5.61947574,2064.7,2064.3,6.58316768]
[1772098243742,6.88353296,2064.5,2063.6,6.58316768]
[1772098244046,5.70172653,2064.3,2063.6,6.58316768]
[1772098244749,5.70172653,2064.3,2063.6,6.58739497]
[1772098245451,6.78245896,2064.5,2063.6,6.58739497]
[1772098245652,5.60065253,2064.7,2064.0,6.58316768]
[1772098245851,7.34889682,2064.6,2064.0,6.58316768]
[1772098246052,7.34889682,2064.5,2064.0,6.58316768]
[1772098246253,5.60065253,2064.7,2064.0,6.58316768]
[1772098246453,12.8999862,2064.6,2064.0,6.58316768]
[1772098246653,7.34774358,2064.5,2064.0,6.58316768]
[1772098246854,5.55224262,2064.6,2064.0,6.58316768]
[1772098247054,7.34774439,2064.5,2064.0,6.58316768]
[1772098247352,7.54533951,2064.4,2064.0,6.58316768]
[1772098247552,5.55224262,2064.6,2064.0,6.58316768]
[1772098247744,7.54533998,2064.5,2064.0,6.58316768]
[1772098247945,7.54533998,2064.4,2064.0,6.58316768]
[1772098248151,5.10588464,2064.5,2064.0,6.58316768]
[1772098248350,7.54464914,2064.4,2064.0,6.58316768]
[1772098248547,5.10588464,2064.5,2064.0,6.58316768]
[1772098248745,7.52936666,2064.4,2064.0,6.58316768]
[1772098248949,7.52936643,2064.3,2064.0,6.58316768]
[1772098249145,5.10588464,2064.5,2064.0,6.58316768]
[1772098249347,7.52865277,2064.4,2064.0,6.58316768]
[1772098249548,7.52865277,2064.3,2064.0,6.58316768]
[1772098249754,5.10588464,2064.5,2064.0,6.58316768]
[1772098249955,7.5286542,2064.4,2064.0,6.58316768]
[1772098250156,5.10588464,2064.5,2064.0,6.58316768]
[1772098250355,12.48647564,2064.4,2064.0,6.58316768]
[1772098250554,7.52813315,2064.3,2064.0,6.58316768]
[1772098250754,4.95834249,2064.4,2064.0,6.58316768]
[1772098250951,7.5281904,2064.3,2064.0,6.58316768]
[1772098251157,4.95834249,2064.4,2064.0,6.58316768]
[1772098251459,7.5278105,2064.3,2064.0,6.58316768]
[1772098251657,4.95834249,2064.4,2064.0,6.58316768]
[1772098251960,7.52781004,2064.3,2064.0,6.58316768]
[1772098252257,4.95834249,2064.4,2064.0,6.58316768]
[1772098252458,7.52762325,2064.3,2064.0,6.58316768]
[1772098252660,4.95834249,2064.4,2064.0,6.58316768]
[1772098252861,7.52762371,2064.3,2064.0,6.58316768]
[1772098253062,49.72979071,2064.7,2064.0,6.58316768]
[1772098253462,4.04489869,2064.7,2064.2,6.58316768]
[1772098253863,4.04489869,2064.9,2064.4,6.58316768]
[1772098254360,6.4821679,2064.9,2064.4,6.58316768]
[1772098258563,10.45772098,2065.0,2064.4,6.58316768]
[1772098258762,6.41282229,2065.0,2064.4,6.58316768]
[1772098259063,6.41282229,2064.9,2064.4,6.58316768]
[1772098259961,6.41282229,2064.9,2064.3,6.12401417]
[1772098260463,10.45772098,2065.0,2064.3,6.12401417]
[1772098260662,6.41282229,2065.0,2064.3,6.12401417]
[1772098264967,13.59339449,2064.9,2064.3,6.12401417]
[1772098265168,6.41282229,2064.9,2064.3,6.12401417]
[1772098267067,10.45772098,2065.1,2064.5,6.12401417]
[1772098267264,7.18208937,2065.0,2064.5,6.12401417]
[1772098267470,7.18208937,2064.9,2064.5,6.12401417]
[1772098267668,10.45772098,2065.1,2064.5,6.12401417]
[1772098267871,7.18208806,2065.0,2064.5,6.12401417]
[1772098268169,7.18208806,2064.9,2064.5,6.12401417]
[1772098268468,10.45772098,2065.1,2064.5,6.12401417]
[1772098268668,13.5922689,2065.0,2064.5,6.12401417]
[1772098268969,6.41804533,2065.2,2064.7,6.12401417]
[1772098270670,0.00522304,2065.2,2064.7,6.12401417]
[1772098274372,6.41804533,2065.2,2064.7,6.12401417]
[1772098274571,0.00522304,2065.2,2064.7,6.12401417]
[1772098276274,4.04489869,2065.7,2065.0,6.12401417]
[1772098276473,6.41282229,2065.6,2065.0,6.12401417]
[1772098277074,6.41282229,2065.7,2065.0,6.12401417]
[1772098277270,0.00584076,2065.6,2065.0,6.12401417]
[1772098280679,7.38919646,2065.5,2065.0,6.12401417]
[1772098280980,0.00584076,2065.6,2065.0,6.12401417]
[1772098281178,7.38919669,2065.5,2065.0,6.12401417]
[1772098281375,10.45772098,2066.0,2065.2,6.12401417]
[1772098281678,7.38827345,2065.9,2065.2,6.12401417]
[1772098281881,7.38827345,2065.8,2065.2,6.12401417]
[1772098282074,10.45772098,2066.1,2065.2,6.12401417]
[1772098282378,7.38611283,2066.0,2065.4,6.12401417]
[1772098282578,7.38611283,2065.9,2065.6,6.12401417]
[1772098282879,6.41758426,2066.1,2065.7,6.63179051]
[1772098283075,7.33479612,2066.0,2065.8,0.50777634]
[1772098283277,0.00476197,2066.1,2066.0,6.12401417]
[1772098283481,6.41282229,2066.4,2066.0,6.62860394]
[1772098283681,6.41282229,2066.4,2066.1,6.62860394]
[1772098283881,6.41282229,2066.4,2066.2,0.50458977]
[1772098284082,6.41282229,2066.4,2066.3,0.50458977]
[1772098284282,4.04489869,2066.7,2066.1,6.12401417]
[1772098284283,6.41282229,2066.6,2066.1,6.12401417]
[1772098284482,6.41905366,2066.6,2066.1,6.12401417]
[1772098289286,0.00623137,2066.6,2066.1,6.12401417]
[1772098292192,4.04489869,2067.3,2066.1,6.12401417]
[1772098292489,16.06114454,2068.2,2067.2,6.05999512]
[1772098292788,5.92633563,2068.2,2067.2,6.05999512]
[1772098292990,5.92633563,2068.0,2067.2,6.05999512]
[1772098293189,5.93054753,2068.0,2067.2,6.06570384]
[1772098294288,0.0042119,2068.0,2067.2,6.06570384]
[1772098296296,5.7840735,2068.0,2067.4,5.85717833]
[1772098298089,5.7798616,2068.8,2067.6,5.85717833]
[1772098298294,5.7798616,2068.8,2067.8,5.85717833]
[1772098298599,0.24163,2069.3,2067.9,6.34747015]
[1772098298600,5.7798616,2069.3,2067.9,6.34747015]
[1772098298799,5.7798616,2069.1,2067.9,5.85717833]
[1772098299001,5.7798616,2069.1,2068.1,5.85717833]
[1772098299194,5.78541493,2069.1,2068.1,5.85717833]
[1772098299399,0.00555333,2069.1,2068.1,5.85717833]
[1772098299698,0.00555333,2069.1,2068.2,0.48947495]
[1772098299896,5.7798616,2069.7,2068.3,6.34656094]
[1772098300196,5.7798616,2069.7,2068.5,5.85717833]
[1772098300994,5.7798616,2069.7,2067.9,5.85717833]
[1772098300995,5.7798616,2069.3,2067.9,5.85717833]
[1772098301398,5.7798616,2069.1,2067.9,5.85717833]
[1772098301599,5.7798616,2069.0,2067.9,5.85717833]
[1772098302095,5.7798616,2069.0,2067.6,5.85717833]
[1772098305204,5.7798616,2069.0,2067.8,5.85717833]
[1772098307398,5.7798616,2069.3,2067.8,5.85717833]
[1772098307700,5.7798616,2069.3,2068.0,5.85717833]
[1772098311495,5.7798616,2069.1,2067.8,5.85717833]
[1772098311694,5.7798616,2068.9,2067.3,5.85717833]
[1772098312203,5.7798616,2068.7,2067.3,5.85717833]
[1772098312404,5.7798616,2068.5,2067.3,5.85717833]
[1772098312805,6.99110927,2068.4,2067.3,5.85717833]
[1772098313000,12.77126818,2068.3,2067.2,5.86288705]
[1772098313305,5.7798616,2068.2,2067.2,5.86288705]
[1772098313505,5.78561069,2068.2,2067.2,5.86288705]
[1772098314306,5.7798616,2068.0,2067.0,5.85717833]
[1772098314509,5.7798616,2067.8,2067.0,5.85717833]
[1772098315408,5.7798616,2067.8,2067.0,5.86212498]
[1772098318108,7.24375338,2067.7,2067.0,5.86212498]
[1772098318308,5.7798616,2067.8,2067.0,5.86212498]
[1772098318511,7.24983587,2067.7,2067.0,5.86212498]
[1772098318707,5.7798616,2067.8,2067.0,5.86212498]
[1772098318907,7.2498357,2067.7,2067.0,5.86212498]
[1772098319109,7.25573457,2067.6,2067.0,5.86212498]
[1772098319311,5.7798616,2067.8,2067.0,5.86212498]
[1772098320112,7.26129151,2067.7,2067.0,5.86212498]
[1772098320302,9.59526636,2068.0,2067.0,5.86212498]
[1772098320502,7.2612895,2067.9,2067.0,5.86212498]
[1772098320706,7.2612895,2067.8,2067.0,5.86212498]
[1772098320908,5.60886608,2067.9,2067.0,5.86212498]
[1772098321110,7.240236,2067.8,2067.0,5.86212498]
[1772098321308,5.60886608,2067.9,2067.0,5.86212498]
[1772098321509,7.24734579,2067.8,2067.0,5.86212498]
[1772098321710,5.60886608,2067.9,2067.0,5.86212498]
[1772098321911,7.24734579,2067.8,2067.0,5.86212498]
[1772098322113,7.25661153,2067.7,2067.0,5.86212498]
[1772098322305,5.60886608,2067.9,2067.0,5.86212498]
[1772098322512,7.25698907,2067.8,2067.0,5.86212498]
[1772098322703,5.60886608,2067.6,2067.0,5.86212498]
[1772098323205,5.60886608,2067.4,2067.0,5.86212498]
[1772098323405,5.60886608,2067.4,2067.0,0.00494665]
[1772098323610,5.60886608,2067.2,2067.0,0.00494665]
[1772098323810,5.60886608,2067.4,2067.0,5.71758667]
[1772098324011,7.24979188,2067.3,2067.0,5.71758667]
[1772098324313,5.60886608,2067.4,2067.0,5.71758667]
[1772098324611,12.85667813,2067.3,2067.0,5.71758667]
[1772098324812,5.60886608,2067.1,2066.2,5.71264002]
[1772098325018,5.60886608,2066.9,2066.2,5.71264002]
[1772098325315,5.60886608,2066.7,2066.2,5.71264002]
[1772098325913,0.00363493,2066.7,2066.2,5.71767544]
[1772098326605,5.60886608,2067.1,2066.2,5.71767544]
[1772098326806,7.23794946,2067.0,2066.2,5.71767544]
[1772098327005,5.60886608,2067.1,2066.2,5.71767544]
[1772098327816,0.00431069,2067.1,2066.2,5.71767544]
[1772098330915,0.00431069,2067.1,2066.4,5.71264002]
[1772098331111,5.60886608,2067.7,2066.8,5.71264002]
[1772098331313,5.60886608,2067.9,2066.8,5.71264002]
[1772098331518,7.42001448,2067.8,2067.0,5.71264002]
[1772098331713,5.60886608,2068.0,2067.0,5.71264002]
[1772098331918,13.02838411,2067.9,2067.0,5.71264002]
[1772098332116,0.00393128,2067.9,2067.2,5.71264002]
[1772098335022,5.61279736,2067.9,2067.2,5.71264002]
[1772098336623,0.00393128,2067.9,2067.2,5.71264002]
[1772098337325,5.61279736,2067.9,2067.2,5.71264002]
[1772098338826,5.60886608,2067.7,2066.6,5.71264002]
[1772098339328,0.00393128,2067.9,2066.8,5.71264002]
[1772098339329,5.61279736,2067.9,2066.8,5.71264002]
[1772098339528,12.79594599,2067.8,2066.8,5.71264002]
[1772098339730,5.60886608,2067.8,2066.8,5.71264002]
[1772098340135,7.19251101,2067.7,2066.8,5.71264002]
[1772098340332,5.60886608,2067.6,2066.8,5.71264002]
[1772098342838,5.60886608,2067.4,2066.6,5.71264002]
[1772098343034,5.60886608,2067.2,2066.6,5.71264002]
[1772098344241,5.60886608,2067.4,2066.6,5.71264002]
[1772098344440,7.20182125,2067.3,2066.6,5.71264002]
[1772098344637,5.60886608,2067.4,2066.6,5.71264002]
[1772098344835,7.2018166,2067.3,2066.6,5.71264002]
[1772098345036,5.60886608,2067.4,2066.6,5.71264002]
[1772098345340,7.20169066,2067.3,2066.6,5.71264002]
[1772098345639,5.60886608,2067.4,2066.6,5.71264002]
[1772098345840,7.20154555,2067.3,2066.6,5.71264002]
[1772098346031,5.60886608,2067.4,2066.6,5.71264002]
[1772098346235,7.20154555,2067.3,2066.6,5.71264002]
[1772098346434,5.60886608,2067.4,2066.6,5.71264002]
[1772098346639,7.20141202,2067.3,2066.6,5.71264002]
[1772098346941,5.60886608,2067.4,2066.6,5.71264002]
[1772098347238,3.98640028,2067.7,2066.6,5.71264002]
[1772098347239,5.41681532,2067.6,2066.6,5.71264002]
[1772098347542,12.61779658,2067.5,2066.6,5.71264002]
[1772098347735,5.41681532,2067.7,2066.8,5.50653813]
[1772098347930,12.61758287,2067.6,2066.8,5.50653813]
[1772098348239,5.41681532,2067.6,2066.8,5.50653813]
[1772098354245,5.41681532,2067.8,2067.0,5.50653813]
[1772098354435,12.62372257,2067.7,2067.0,5.50653813]
[1772098354639,5.41681532,2067.7,2067.0,5.50653813]
[1772098355140,9.40714688,2067.9,2067.0,5.50653813]
[1772098355335,7.20992849,2067.8,2067.0,5.50653813]
[1772098355541,5.4207466,2067.9,2067.0,5.50653813]
[1772098355742,12.17401579,2067.8,2067.0,5.50653813]
[1772098355941,4.99858681,2067.8,2067.0,5.50653813]
[1772098361047,4.99858682,2067.9,2067.4,5.64977976]
[1772098361350,4.99858682,2067.9,2067.0,5.40794976]
[1772098365754,4.99858682,2067.9,2067.2,5.40794976]
[1772098366152,1e-08,2067.9,2067.4,5.40794976]
[1772098366345,4.99858681,2068.2,2067.4,5.40794976]
[1772098367356,5.003078,2068.2,2067.4,5.40794976]
[1772098367556,5.003078,2068.2,2067.6,5.40794976]
[1772098367952,0.00449119,2068.2,2067.6,5.40794976]
[1772098368455,0.00449119,2068.2,2067.8,5.40794976]
[1772098368650,4.99858681,2068.5,2067.8,5.41391547]
[1772098369451,4.99858681,2068.7,2067.9,0.24178]
[1772098369652,5.00371476,2068.7,2068.0,5.40794976]
[1772098370748,7.61238778,2069.4,2067.8,0.00596571]
[1772098370749,4.99858681,2068.9,2068.2,5.40794976]
[1772098371958,5.00472468,2068.9,2068.2,5.40794976]
[1772098374852,4.99858681,2069.1,2068.4,5.40794976]
[1772098376054,5.00458729,2069.1,2068.3,5.34458926]
[1772098377766,0.00600048,2069.1,2068.3,5.34458926]
[1772098377963,4.97509759,2069.1,2068.3,5.34458926]
[1772098380162,4.97509759,2069.1,2068.2,5.10285926]
[1772098382372,4.96909711,2068.9,2068.1,15.36885926]
[1772098383572,4.96909711,2068.9,2068.2,5.10285926]
[1772098386873,4.96909711,2068.9,2068.1,15.61060926]
[1772098387074,4.96909711,2068.9,2068.2,5.10285926]
[1772098387875,4.96909711,2069.0,2068.4,5.10285926]
[1772098388775,0.00600048,2069.1,2068.4,5.10285926]
[1772098389473,4.97509759,2069.1,2068.4,5.10285926]
[1772098391177,4.96909711,2068.9,2068.4,5.10285926]
[1772098393178,4.97509759,2069.1,2068.6,5.10285926]
[1772098393985,4.97509759,2069.1,2068.5,5.34456926]
[1772098395186,4.96909711,2068.9,2068.5,5.34456926]
[1772098398090,4.97509759,2069.1,2068.5,5.34456926]
[1772098398290,12.35955268,2069.0,2068.5,5.34456926]
[1772098398490,4.96909711,2069.0,2068.5,5.34456926]
[1772098399194,7.38484409,2068.9,2068.5,5.34456926]
[1772098399393,4.96909711,2069.0,2068.5,5.34456926]
[1772098399594,7.38484409,2068.9,2068.5,5.34456926]
[1772098399796,4.96909711,2069.0,2068.5,5.34456926]
[1772098399994,12.32868682,2068.9,2068.5,5.34456926]
[1772098400195,4.96909711,2068.9,2068.5,5.34456926]
[1772098400593,4.97509759,2069.1,2068.5,5.34456926]
[1772098400798,7.36103783,2069.0,2068.7,5.10285926]
[1772098401095,4.97509759,2069.1,2068.7,5.10285926]
[1772098401496,7.21159037,2069.0,2068.7,5.10285926]
[1772098401696,4.96909711,2068.8,2068.2,5.10285926]
[1772098401892,4.96909711,2068.8,2068.2,5.09927416]
[1772098405996,4.72539857,2068.6,2068.2,4.39364428]
[1772098408202,4.72539857,2069.0,2068.2,4.39364428]
[1772098408391,11.84057486,2068.9,2068.2,4.39364428]
[1772098408592,4.72539857,2068.9,2068.2,4.39364428]
[1772098408798,0.00600048,2069.1,2068.2,4.39364428]
[1772098408799,4.72539857,2068.7,2068.2,4.39364428]
[1772098413804,3.87211169,2069.3,2068.9,4.39364428]
[1772098414105,4.72539857,2069.4,2069.1,4.39364428]
[1772098414906,4.73151542,2069.4,2069.1,4.39364428]
[1772098417408,4.73151542,2069.4,2069.0,14.8891359]
[1772098418405,4.73151542,2069.4,2069.0,10.261]
[1772098418905,4.68230086,2069.2,2068.1,4.6281359]
[1772098419109,4.68230086,2069.2,2068.3,4.6281359]
[1772098419306,4.68230086,2069.0,2068.3,10.269]
[1772098419906,4.68230086,2069.0,2068.3,14.8971359]
[1772098426918,4.68230086,2069.0,2068.4,4.6281359]
[1772098432027,4.68230086,2069.0,2068.3,14.8971359]
[1772098433025,4.68230086,2069.0,2068.4,4.6281359]
[1772098433725,4.68230086,2069.0,2068.3,14.8971359]
[1772098435426,4.68230086,2069.0,2068.4,4.6281359]
[1772098436921,4.68230086,2069.0,2068.0,4.29673163]
[1772098437129,4.48681877,2068.8,2068.1,10.302]
[1772098437325,4.48681877,2068.8,2068.1,14.59873163]
[1772098437929,4.48681877,2068.8,2068.2,4.29673163]
[1772098443235,4.48681877,2069.2,2068.2,4.29673163]
[1772098443533,4.48681877,2069.0,2068.2,4.29673163]
[1772098444331,4.48681877,2069.2,2068.2,4.53847163]
[1772098444725,4.49293562,2069.4,2068.2,4.53847163]
[1772098445330,4.48681877,2069.2,2068.2,4.53847163]
[1772098446937,4.48681877,2069.2,2068.4,4.29673163]
[1772098448641,4.49293562,2069.4,2068.6,4.29673163]
[1772098448838,4.48681877,2069.2,2068.6,4.29673163]
[1772098453346,4.48681877,2069.2,2068.5,4.29673163]
[1772098455648,4.48681877,2069.2,2068.3,14.60373163]
[1772098455847,4.48681877,2069.2,2068.4,4.29673163]
[1772098457452,0.00611685,2069.4,2068.4,4.29673163]
[1772098457453,4.48681877,2069.0,2068.4,4.29673163]
[1772098460658,4.48681877,2069.0,2068.5,4.29673163]
[1772098460956,4.48681877,2069.2,2068.5,4.29673163]
[1772098461153,11.2873852,2069.1,2068.5,4.29673163]
[1772098461461,4.48681877,2069.1,2068.5,4.29673163]
[1772098463256,4.48681877,2069.1,2068.7,4.29673163]
[1772098469463,4.48681877,2069.1,2068.6,1.17720942]
[1772098469654,3.90856531,2068.9,2068.4,5.31527981]
[1772098470561,3.90856531,2068.9,2068.5,4.13807039]
[1772098472259,3.90856531,2069.3,2068.9,4.13807039]
[1772098475765,3.90856531,2069.3,2069.0,4.99784233]
[1772098476167,3.90856531,2069.3,2068.8,1.17720942]
[1772098476361,3.90856531,2069.3,2068.9,3.82063291]
[1772098476667,3.90856531,2069.3,2068.8,1.17720942]
[1772098476862,3.90856531,2069.3,2068.5,3.82063291]
[1772098477069,4.17834772,2069.1,2068.5,3.82063291]
[1772098477567,4.17834772,2068.9,2068.3,3.82063291]
[1772098479565,4.17834772,2068.7,2068.3,3.82063291]
[1772098481970,4.17834772,2069.0,2068.3,3.82063291]
[1772098482170,4.17834772,2068.8,2068.4,3.82063291]
[1772098488879,4.17834772,2069.0,2068.4,3.82063291]
[1772098489080,4.17834772,2068.8,2068.4,3.82063291]
[1772098489276,4.17834772,2069.1,2068.7,4.99784233]
[1772098489481,4.17834772,2069.1,2068.5,4.99784233]
[1772098489784,4.17834772,2069.1,2068.5,3.82063291]
[1772098491184,4.17834772,2069.1,2068.7,3.82063291]
[1772098491687,4.17834772,2069.3,2068.9,3.82063291]
[1772098491888,6.93877961,2069.2,2068.9,3.82063291]
[1772098492185,4.17834772,2069.3,2068.9,3.82063291]
[1772098492385,6.93847389,2069.2,2068.9,3.82063291]
[1772098492585,4.17834772,2069.3,2068.9,3.82063291]
[1772098492786,6.93847647,2069.2,2068.9,3.82063291]
[1772098493084,4.17834772,2069.3,2068.9,3.82063291]
[1772098493284,6.83445912,2069.2,2068.9,3.82063291]
[1772098493484,4.17834772,2069.3,2068.9,3.82063291]
[1772098493687,11.01285559,2069.2,2068.9,3.82063291]
[1772098493881,4.17834772,2069.2,2068.6,1.17720942]
[1772098494086,4.17834772,2069.2,2068.7,3.82063291]
[1772098496189,4.17834772,2069.2,2068.3,14.89283263]
[1772098496388,3.68180459,2069.0,2068.3,14.65111263]
[1772098496689,3.68180459,2069.0,2068.4,3.65490321]
[1772098498388,3.68180459,2069.0,2068.7,3.65490321]
[1772098498585,3.55019874,2069.0,2068.7,3.65490321]
[1772098498889,3.55019874,2069.0,2068.6,4.83211263]
[1772098499084,3.55019874,2069.0,2068.7,3.65490321]
[1772098501091,3.68180459,2069.3,2068.9,3.65490321]
[1772098501390,10.54449905,2069.2,2068.9,3.65490321]
[1772098501592,3.68180459,2069.2,2068.5,3.65490321]
[1772098501885,3.68180459,2068.5,2067.8,0.00596571]
[1772098502091,3.68180459,2068.3,2067.8,3.66086892]
[1772098504093,3.68180459,2068.3,2067.8,0.00596571]
[1772098505693,3.68180459,2068.3,2067.8,3.66086892]
[1772098505895,3.68180459,2068.4,2067.9,3.65490321]
[1772098506095,3.68180459,2068.7,2068.1,3.65490321]
[1772098506290,3.68180459,2068.5,2068.1,3.65490321]
[1772098506489,4.05291358,2068.8,2068.3,3.65490321]
[1772098506490,3.68180459,2068.8,2068.3,3.65490321]
[1772098507494,3.68180459,2068.8,2068.5,3.65490321]
[1772098509392,3.67822188,2068.8,2068.5,3.65490321]
[1772098511401,3.67822188,2068.8,2068.1,3.65490321]
[1772098511701,3.67822188,2068.8,2068.2,3.65490321]
[1772098513098,3.67822188,2068.8,2067.8,2.01403558]
[1772098513099,3.67822188,2068.8,2067.9,3.65490321]
[1772098519803,3.67822188,2068.8,2068.1,3.65490321]
[1772098520410,3.68180459,2068.9,2068.1,3.65490321]
[1772098520607,3.68180459,2069.2,2068.3,3.65490321]
[1772098520800,10.52467288,2069.1,2068.3,3.65490321]
[1772098521000,3.68180459,2069.0,2068.3,3.65490321]
[1772098522410,3.68180459,2069.2,2068.3,3.65490321]
[1772098522804,3.68180459,2069.0,2068.3,3.65490321]
[1772098523610,21.26863555,2069.3,2068.3,3.65490321]
[1772098523611,3.68180459,2069.2,2068.3,3.65490321]
[1772098523913,3.68792144,2069.4,2069.0,3.65490321]
[1772098524707,10.307,2069.9,2069.0,3.65490321]
[1772098524910,3.68180459,2069.6,2069.0,3.65490321]
[1772098526017,3.68701287,2069.6,2069.0,3.65490321]
[1772098526715,3.68701287,2069.6,2068.9,3.67558495]
[1772098531510,0.00520828,2069.6,2068.9,3.67558495]
[1772098531714,3.5183003,2069.9,2069.1,3.67558495]
[1772098532716,3.5222034,2069.9,2069.1,3.67558495]
[1772098533816,3.5222034,2069.9,2069.2,1.17673511]
[1772098534016,3.5183003,2070.2,2069.6,3.67558495]
[1772098534216,3.5183003,2070.2,2069.4,3.67558495]
[1772098535116,3.52453615,2070.2,2069.4,3.68076648]
[1772098535422,3.52453615,2070.2,2069.5,3.4350936]
[1772098535716,3.52453615,2070.2,2069.4,0.00518153]
[1772098536423,3.52453615,2070.2,2069.4,3.44027513]
[1772098537119,3.52453615,2070.2,2069.4,0.00518153]
[1772098538423,3.52453615,2070.2,2069.4,3.44027513]
[1772098538721,3.5316104,2070.2,2069.4,3.44027513]
[1772098539825,3.5316104,2070.2,2069.6,3.4350936]
[1772098540025,0.00623585,2070.2,2069.6,3.4350936]
[1772098540227,3.52537455,2070.8,2070.1,3.4350936]
[1772098541223,0.00544506,2070.8,2070.1,3.4350936]
[1772098541430,3.52537455,2070.7,2070.1,3.4350936]
[1772098542124,44.32537455,2071.3,2070.2,0.24151]
[1772098542324,3.52537455,2071.2,2070.3,3.4350936]
[1772098543121,3.53141553,2071.2,2070.3,3.4350936]
[1772098543322,0.00604098,2071.2,2070.3,3.4350936]
[1772098543528,0.00604098,2071.2,2070.4,0.24149]
[1772098543734,0.00604098,2071.2,2070.5,3.4350936]
[1772098543928,3.53141553,2071.2,2070.0,9.777]
[1772098544134,3.53141553,2071.2,2070.1,3.4350936]
[1772098546334,3.53141553,2071.2,2070.3,3.4350936]
[1772098547134,0.00604098,2071.2,2070.5,3.4350936]
[1772098547536,3.53141553,2071.2,2070.5,3.4350936]
[1772098549042,3.53141553,2071.2,2070.2,13.5920936]
[1772098549533,3.53141553,2071.2,2070.2,3.4350936]
[1772098549735,3.53141553,2071.2,2070.0,3.4350936]
[1772098550933,3.52537455,2071.0,2069.8,3.4350936]
[1772098554143,3.52537455,2070.8,2069.8,3.4350936]
[1772098555137,3.52537455,2070.6,2069.8,3.4350936]
[1772098556342,3.6598022,2070.8,2069.8,3.4350936]
[1772098557741,3.6598022,2071.1,2070.2,3.342184]
[1772098557941,3.6598022,2071.0,2070.2,3.342184]
[1772098558440,3.66584318,2071.2,2070.2,3.342184]
[1772098558638,6.72583998,2071.1,2070.2,3.342184]
[1772098558837,3.66584318,2071.2,2070.2,3.342184]
[1772098559038,6.72583981,2071.1,2070.2,3.342184]
[1772098559238,3.66584318,2071.2,2070.2,3.342184]
[1772098559443,3.6598022,2071.0,2070.2,3.342184]
[1772098560749,3.66584318,2071.2,2070.2,3.342184]